[Event "Smuk Skak GM Tournament 2021"]
[Site "Skanderborg, Denmark"]
[Date "2021.08.17"]
[Round "4.3"]
[White "Nagy, Gabor"]
[Black "Olsen, Filip Boe"]
[Result "1-0"]
[TimeControl "90 minutes + 30 minutes at move 40, 30 secs pr move from move 1"]
[WhiteTitle "GM"]
[BlackTitle "IM"]
[WhiteFideId "737119"]
[BlackFideId "1440640"]
[WhiteElo "2518"]
[BlackElo "2397"]

1. d4 {[%clk 01:30:55]} {[%emt 00:30:53]} d5 {[%clk 01:30:50]} 2. c4 {[%clk
01:31:06]} {[%emt 00:00:20]} c6 {[%clk 01:31:05]} {[%emt 00:00:20]} 3. Nf3
{[%clk 01:31:20]} {[%emt 00:00:20]} Nf6 {[%clk 01:31:26]} 4. e3 {[%clk
01:31:36]} {[%emt 00:00:20]} Bf5 {[%clk 01:31:41]} {[%emt 00:00:20]} 5. Nc3
{[%clk 01:31:19]} {[%emt 00:00:41]} e6 {[%clk 01:31:58]} {[%emt 00:00:20]} 6.
Nh4 {[%clk 01:30:59]} {[%emt 00:00:41]} Bg6 {[%clk 01:32:02]} {[%emt 00:00:20]}
7. Bd2 {[%clk 01:26:51]} {[%emt 00:04:45]} Nbd7 {[%clk 01:29:52]} {[%emt
00:02:43]} 8. Nxg6 hxg6 {[%clk 01:30:11]} 9. cxd5 {[%clk 01:26:40]} {[%emt
00:00:20]} exd5 {[%clk 01:24:55]} {[%emt 00:05:45]} 10. Bd3 {[%clk 01:26:45]}
{[%emt 00:00:20]} Bd6 {[%clk 01:24:15]} {[%emt 00:01:21]} 11. h3 {[%clk
01:23:40]} {[%emt 00:03:23]} g5 {[%clk 01:16:37]} {[%emt 00:08:05]} 12. Qc2
{[%clk 01:23:21]} {[%emt 00:00:48]} g4 {[%clk 01:12:05]} {[%emt 00:05:03]} 13.
O-O-O {[%clk 01:23:16]} {[%emt 00:00:34]} gxh3 {[%clk 01:10:23]} {[%emt
00:02:12]} 14. gxh3 {[%clk 01:18:50]} {[%emt 00:04:55]} Qc7 {[%clk 01:04:20]}
{[%emt 00:06:34]} 15. f3 {[%clk 01:18:56]} {[%emt 00:00:24]} O-O-O {[%clk
01:02:14]} {[%emt 00:02:36]} 16. Kb1 {[%clk 01:18:51]} {[%emt 00:00:35]} Nh5
{[%clk 00:52:13]} {[%emt 00:10:36]} 17. e4 {[%clk 01:16:18]} {[%emt 00:03:04]}
dxe4 {[%clk 00:49:16]} {[%emt 00:03:26]} 18. fxe4 {[%clk 01:16:02]} {[%emt
00:00:41]} f6 {[%clk 00:45:52]} {[%emt 00:04:04]} 19. Rhg1 {[%clk 01:09:56]}
{[%emt 00:06:26]} Kb8 {[%clk 00:36:22]} {[%emt 00:10:06]} 20. Be2 {[%clk
01:05:50]} {[%emt 00:04:31]} Nf8 {[%clk 00:32:59]} {[%emt 00:03:57]} 21. Be3
{[%clk 00:58:33]} {[%emt 00:07:59]} Nf4 {[%clk 00:28:03]} {[%emt 00:05:25]} 22.
Bg4 {[%clk 00:54:37]} {[%emt 00:04:24]} g5 {[%clk 00:23:35]} {[%emt 00:04:45]}
23. Bf5 {[%clk 00:54:14]} {[%emt 00:01:01]} N8g6 {[%clk 00:17:07]} {[%emt
00:07:07]} 24. e5 {[%clk 00:52:33]} {[%emt 00:02:02]} Nxe5 {[%clk 00:16:59]}
{[%emt 00:00:41]} 25. Bxf4 {[%clk 00:50:41]} {[%emt 00:02:22]} gxf4 {[%clk
00:16:54]} {[%emt 00:00:41]} 26. dxe5 {[%clk 00:51:05]} Bc5 {[%clk 00:16:00]}
{[%emt 00:01:21]} 27. Rxd8+ {[%clk 00:48:14]} {[%emt 00:03:23]} Rxd8 {[%clk
00:16:13]} {[%emt 00:00:20]} 28. Rd1 {[%clk 00:48:37]} fxe5 {[%clk 00:16:27]}
{[%emt 00:00:20]} 29. Ne4 {[%clk 00:47:35]} {[%emt 00:01:21]} Bb6 {[%clk
00:15:02]} {[%emt 00:02:02]} 30. Bg4 {[%clk 00:45:51]} {[%emt 00:02:11]} Qe7
{[%clk 00:13:20]} {[%emt 00:02:09]} 31. a3 {[%clk 00:45:08]} {[%emt 00:01:12]}
a6 {[%clk 00:13:19]} {[%emt 00:00:30]} 32. Rxd8+ {[%clk 00:45:17]} {[%emt
00:00:32]} Qxd8 {[%clk 00:13:25]} {[%emt 00:00:21]} 33. Qc4 {[%clk 00:44:44]}
{[%emt 00:01:02]} Qh4 {[%clk 00:12:08]} {[%emt 00:01:43]} 34. Ka2 {[%clk
00:44:15]} {[%emt 00:01:02]} Qe7 {[%clk 00:08:57]} {[%emt 00:03:44]} 35. Qe6
{[%clk 00:42:48]} {[%emt 00:02:02]} Bd8 {[%clk 00:07:32]} {[%emt 00:02:02]} 36.
Kb3 {[%clk 00:42:14]} {[%emt 00:01:01]} Qxe6+ {[%clk 00:07:50]} 37. Bxe6 {[%clk
00:42:42]} Kc7 {[%clk 00:08:03]} {[%emt 00:00:20]} 38. Kc2 {[%clk 00:42:55]}
{[%emt 00:00:20]} Be7 {[%clk 00:08:09]} {[%emt 00:00:20]} 39. Kd3 {[%clk
00:43:15]} {[%emt 00:00:06]} b5 {[%clk 00:08:07]} {[%emt 00:00:30]} 40. Bg4
{[%clk 00:42:38]} {[%emt 00:01:07]} a5 {[%clk 00:08:20]} {[%emt 00:00:17]} 41.
Nd2 {[%clk 00:41:59]} {[%emt 00:01:08]} a4 {[%clk 00:08:14]} {[%emt 00:00:38]}
42. Ke4 {[%clk 00:41:56]} {[%emt 00:00:32]} Kd6 {[%clk 00:08:08]} {[%emt
00:00:36]} 43. Be2 {[%clk 00:41:20]} {[%emt 00:01:06]} Ke6 {[%clk 00:07:27]}
{[%emt 00:01:12]} 44. Nf3 {[%clk 00:41:21]} {[%emt 00:00:29]} b4 {[%clk
00:06:12]} {[%emt 00:01:46]} 45. axb4 {[%clk 00:40:25]} {[%emt 00:01:26]} Bxb4
{[%clk 00:06:36]} {[%emt 00:00:06]} 46. Nxe5 {[%clk 00:39:01]} {[%emt
00:01:53]} a3 {[%clk 00:04:25]} {[%emt 00:02:42]} 47. bxa3 {[%clk 00:39:19]}
{[%emt 00:00:12]} Bxa3 {[%clk 00:04:53]} {[%emt 00:00:02]} 48. Nxc6 {[%clk
00:39:23]} {[%emt 00:00:25]} f3 {[%clk 00:28:47]} {[%emt 00:06:35]} 49. Bxf3
{[%clk 01:09:40]} {[%emt 00:00:13]} Kf6 {[%clk 00:29:11]} {[%emt 00:00:06]} 50.
Kf4 {[%clk 01:09:59]} {[%emt 00:00:11]} Bc1+ {[%clk 00:29:11]} {[%emt
00:00:31]} 51. Kg4 {[%clk 01:10:22]} {[%emt 00:00:07]} Kg6 {[%clk 00:29:05]}
{[%emt 00:00:36]} 52. Be4+ {[%clk 01:10:47]} {[%emt 00:00:06]} Kh6 {[%clk
00:28:59]} {[%emt 00:00:37]} 53. Nd4 {[%clk 01:10:56]} {[%emt 00:00:21]} Bd2
{[%clk 00:29:02]} {[%emt 00:00:27]} 54. h4 {[%clk 01:11:12]} {[%emt 00:00:13]}
Bc1 {[%clk 00:29:12]} {[%emt 00:00:20]} 55. h5 {[%clk 01:10:04]} {[%emt
00:01:38]} Kg7 {[%clk 00:27:03]} {[%emt 00:02:40]} 56. Bg6 {[%clk 01:09:57]}
{[%emt 00:00:36]} Bb2 {[%clk 00:22:18]} {[%emt 00:05:15]} 57. Nf5+ {[%clk
01:10:09]} {[%emt 00:00:17]} Kh8 {[%clk 00:22:31]} {[%emt 00:00:16]} 58. h6
{[%clk 01:10:24]} {[%emt 00:00:15]} Ba3 {[%clk 00:21:26]} {[%emt 00:01:36]} 59.
Kh5 {[%clk 01:10:11]} {[%emt 00:00:43]} Bb4 {[%clk 00:21:19]} {[%emt 00:00:37]}
60. Nd4 {[%clk 01:10:16]} {[%emt 00:00:24]} Bc3 {[%clk 00:21:16]} {[%emt
00:00:39]} 61. Ne6 {[%clk 01:10:29]} {[%emt 00:00:16]} Bf6 {[%clk 00:21:06]}
{[%emt 00:00:41]} 62. h7 {[%clk 01:10:36]} {[%emt 00:00:21]} Be7 {[%clk
00:20:53]} {[%emt 00:00:41]} 63. Bc2 {[%clk 01:10:59]} {[%emt 00:00:10]} Bf6
{[%clk 00:20:56]} {[%emt 00:00:31]} 64. Kg6 {[%clk 01:11:18]} {[%emt 00:00:10]}
Be7 {[%clk 00:21:01]} {[%emt 00:00:21]} 65. Kf7 {[%clk 01:11:23]} {[%emt
00:00:31]} Bd8 {[%clk 00:20:46]} {[%emt 00:00:41]} 66. Bd3 {[%clk 01:11:20]}
{[%emt 00:00:31]} Be7 {[%clk 00:21:00]} {[%emt 00:00:31]} 67. Kg6 {[%clk
01:11:21]} {[%emt 00:00:20]} Bf6 {[%clk 00:20:22]} {[%emt 00:01:01]} 68. Nf4
{[%clk 01:10:07]} {[%emt 00:01:42]} Be5 {[%clk 00:19:04]} {[%emt 00:02:02]} 69.
Nh3 {[%clk 01:10:20]} {[%emt 00:00:20]} Bf4 {[%clk 00:18:29]} {[%emt 00:01:01]}
70. Nf2 {[%clk 01:09:47]} {[%emt 00:01:01]} Bg3 {[%clk 00:17:40]} {[%emt
00:01:21]} 71. Ng4 {[%clk 01:10:05]} Bf4 {[%clk 00:17:54]} {[%emt 00:00:20]} 72.
Be4 {[%clk 01:10:07]} {[%emt 00:00:41]} Bh6 {[%clk 00:17:58]} {[%emt 00:00:20]}
73. Ne5 {[%clk 01:10:31]} 1-0

[Event "Smuk Skak GM Tournament 2021"]
[Site "Skanderborg, Denmark"]
[Date "2021.08.17"]
[Round "4.4"]
[White "Svane, Frederik"]
[Black "Antolak, Julia"]
[Result "1-0"]
[TimeControl "90 minutes + 30 minutes at move 40, 30 secs pr move from move 1"]
[WhiteTitle "IM"]
[BlackTitle "WIM"]
[WhiteFideId "12923044"]
[BlackFideId "1159569"]
[WhiteElo "2438"]
[BlackElo "2340"]

1. e4 {[%clk 01:30:48]} {[%emt 00:30:53]} c5 {[%clk 01:30:55]} {[%emt
00:00:20]} 2. Nc3 {[%clk 01:31:10]} d6 {[%clk 01:30:58]} {[%emt 00:00:20]} 3.
Nge2 {[%clk 01:28:42]} {[%emt 00:03:03]} a6 {[%clk 01:30:52]} {[%emt 00:00:41]}
4. d4 {[%clk 01:28:18]} {[%emt 00:00:41]} cxd4 5. Qxd4 {[%clk 01:28:40]} Nc6
{[%clk 01:26:45]} {[%emt 00:05:05]} 6. Qd2 {[%clk 01:29:03]} Nf6 {[%clk
01:25:04]} {[%emt 00:02:22]} 7. b3 {[%clk 01:29:21]} e6 {[%clk 01:24:58]}
{[%emt 00:00:41]} 8. Bb2 {[%clk 01:29:31]} {[%emt 00:00:20]} b5 {[%clk
01:23:13]} {[%emt 00:02:22]} 9. f3 {[%clk 01:28:08]} {[%emt 00:01:42]} h5
{[%clk 01:20:40]} {[%emt 00:03:03]} 10. O-O-O {[%clk 01:26:51]} {[%emt
00:02:02]} Bb7 {[%clk 01:18:40]} {[%emt 00:02:22]} 11. Kb1 {[%clk 01:24:25]}
{[%emt 00:02:43]} Rc8 {[%clk 01:10:16]} {[%emt 00:08:55]} 12. Nf4 {[%clk
01:21:02]} {[%emt 00:03:53]} Be7 {[%clk 01:08:17]} {[%emt 00:02:29]} 13. a4
{[%clk 01:13:45]} {[%emt 00:07:48]} bxa4 {[%clk 00:57:59]} {[%emt 00:10:48]} 14.
Nxa4 {[%clk 01:14:06]} {[%emt 00:00:09]} e5 {[%clk 00:56:31]} {[%emt 00:01:57]}
15. Nd5 {[%clk 01:01:36]} {[%emt 00:13:14]} Nxd5 {[%clk 00:54:12]} {[%emt
00:02:43]} 16. Qxd5 {[%clk 00:42:30]} {[%emt 00:19:33]} Qc7 {[%clk 00:50:41]}
{[%emt 00:03:57]} 17. Bc4 {[%clk 00:39:31]} {[%emt 00:03:44]} O-O {[%clk
00:48:50]} {[%emt 00:02:22]} 18. Qd2 {[%clk 00:39:56]} Nd4 {[%clk 00:42:39]}
{[%emt 00:06:47]} 19. Bxd4 {[%clk 00:36:07]} {[%emt 00:04:04]} exd4 20. Qxd4
{[%clk 00:36:25]} d5 {[%clk 00:40:20]} {[%emt 00:03:23]} 21. exd5 {[%clk
00:36:21]} {[%emt 00:00:20]} Bf6 {[%clk 00:40:26]} {[%emt 00:00:41]} 22. d6
{[%clk 00:32:01]} {[%emt 00:04:45]} Qa5 {[%clk 00:39:52]} {[%emt 00:01:01]} 23.
Qb6 {[%clk 00:19:43]} {[%emt 00:12:52]} Qe5 {[%clk 00:39:40]} {[%emt 00:00:41]}
24. Ka2 {[%clk 00:20:09]} Bc6 {[%clk 00:33:01]} {[%emt 00:07:03]} 25. Rhe1
{[%clk 00:20:28]} {[%emt 00:00:16]} Qf5 {[%clk 00:30:19]} {[%emt 00:03:09]} 26.
Bd3 {[%clk 00:20:50]} {[%emt 00:00:10]} Qg5 {[%clk 00:30:18]} {[%emt 00:00:31]}
27. Qc5 {[%clk 00:14:53]} {[%emt 00:06:39]} Bd5 {[%clk 00:13:12]} {[%emt
00:17:19]} 28. Qxd5 {[%clk 00:15:21]} {[%emt 00:00:03]} Qxd5 {[%clk 00:13:36]}
{[%emt 00:00:05]} 29. Bh7+ {[%clk 00:15:48]} {[%emt 00:00:03]} Kxh7 {[%clk
00:14:00]} {[%emt 00:00:06]} 30. Rxd5 {[%clk 00:16:15]} {[%emt 00:00:03]} Rxc2+
{[%clk 00:14:21]} {[%emt 00:00:09]} 31. Ka3 {[%clk 00:16:43]} {[%emt 00:00:03]}
Rd8 {[%clk 00:13:13]} {[%emt 00:01:38]} 32. d7 {[%clk 00:16:56]} {[%emt
00:00:16]} Rc7 {[%clk 00:07:57]} {[%emt 00:05:46]} 33. Nc5 {[%clk 00:14:58]}
{[%emt 00:02:28]} Rb8 {[%clk 00:08:18]} {[%emt 00:00:09]} 34. Re8 {[%clk
00:11:01]} {[%emt 00:04:26]} Rb5 {[%clk 00:08:35]} {[%emt 00:00:14]} 35. Rc8
{[%clk 00:11:17]} {[%emt 00:00:14]} Ra5+ {[%clk 00:01:55]} {[%emt 00:07:11]} 36.
Kb4 {[%clk 00:11:29]} {[%emt 00:00:16]} Rb5+ {[%clk 00:01:42]} {[%emt
00:00:43]} 37. Kc4 {[%clk 00:11:53]} {[%emt 00:00:06]} 1-0

[Event "Smuk Skak GM Tournament 2021"]
[Site "Skanderborg, Denmark"]
[Date "2021.08.17"]
[Round "4.5"]
[White "Brunello, Sabino"]
[Black "Pedersen, Nicolai Vesterbæk"]
[Result "1/2-1/2"]
[TimeControl "90 minutes + 30 minutes at move 40, 30 secs pr move from move 1"]
[WhiteTitle "GM"]
[BlackTitle "IM"]
[WhiteFideId "813613"]
[BlackFideId "1402340"]
[WhiteElo "2517"]
[BlackElo "2369"]

1. d4 {[%clk 01:30:57]} {[%emt 00:30:53]} Nf6 {[%clk 01:30:48]} 2. c4 {[%clk
01:30:16]} {[%emt 00:01:21]} e6 {[%clk 01:31:01]} {[%emt 00:00:20]} 3. Nc3
{[%clk 01:30:41]} Bb4 {[%clk 01:31:12]} {[%emt 00:00:20]} 4. e3 {[%clk
01:31:01]} O-O {[%clk 01:31:25]} {[%emt 00:00:20]} 5. Bd2 {[%clk 01:29:41]}
{[%emt 00:02:02]} c5 {[%clk 01:31:37]} {[%emt 00:00:20]} 6. Bd3 {[%clk
01:06:41]} {[%emt 00:23:11]} cxd4 {[%clk 01:26:38]} {[%emt 00:05:29]} 7. exd4
{[%clk 01:07:09]} {[%emt 00:00:02]} d5 {[%clk 01:26:44]} {[%emt 00:00:24]} 8.
cxd5 {[%clk 01:00:52]} {[%emt 00:06:48]} exd5 {[%clk 00:55:40]} {[%emt
00:31:37]} 9. f3 {[%clk 00:55:51]} {[%emt 00:05:46]} Bxc3 {[%clk 00:49:11]}
{[%emt 00:06:46]} 10. bxc3 {[%clk 00:48:26]} {[%emt 00:07:53]} b6 {[%clk
00:46:05]} {[%emt 00:03:38]} 11. Ne2 {[%clk 00:47:23]} {[%emt 00:01:34]} Ba6
{[%clk 00:45:12]} {[%emt 00:01:23]} 12. Bg5 {[%clk 00:34:58]} {[%emt 00:13:06]}
Bxd3 13. Qxd3 {[%clk 00:35:26]} Nbd7 {[%clk 00:38:52]} {[%emt 00:01:01]} 14. c4
{[%clk 00:29:00]} {[%emt 00:07:07]} dxc4 15. Qxc4 {[%clk 00:29:28]} Rc8 {[%clk
00:33:21]} {[%emt 00:01:21]} 16. Qa6 {[%clk 00:25:04]} {[%emt 00:05:05]} h6
{[%clk 00:30:15]} {[%emt 00:03:23]} 17. Bh4 {[%clk 00:22:53]} {[%emt 00:02:43]}
Rc2 {[%clk 00:26:18]} {[%emt 00:04:23]} 18. Rc1 {[%clk 00:12:29]} {[%emt
00:11:02]} Rxc1+ 19. Nxc1 {[%clk 00:12:57]} Re8+ {[%clk 00:18:26]} {[%emt
00:03:58]} 20. Ne2 {[%clk 00:12:39]} {[%emt 00:00:48]} Qe7 {[%clk 00:17:16]}
{[%emt 00:01:39]} 21. Qd3 {[%clk 00:11:34]} {[%emt 00:01:36]} Qb4+ {[%clk
00:14:09]} {[%emt 00:03:37]} 22. Kf2 {[%clk 00:09:48]} {[%emt 00:02:16]} Qb2
{[%clk 00:13:46]} {[%emt 00:00:53]} 23. Rd1 {[%clk 00:06:09]} {[%emt 00:04:10]}
Qxa2 {[%clk 00:13:46]} {[%emt 00:00:30]} 24. Rd2 {[%clk 00:05:36]} {[%emt
00:01:03]} Qa5 {[%clk 00:11:56]} {[%emt 00:02:18]} 25. Bxf6 {[%clk 00:02:23]}
{[%emt 00:03:45]} Nxf6 {[%clk 00:12:09]} {[%emt 00:00:16]} 26. d5 {[%clk
00:02:42]} {[%emt 00:00:12]} Qc5+ {[%clk 00:10:37]} {[%emt 00:02:01]} 27. Qd4
{[%clk 00:01:39]} {[%emt 00:01:34]} Qxd4+ {[%clk 00:08:12]} {[%emt 00:02:56]}
28. Nxd4 {[%clk 00:01:09]} {[%emt 00:00:59]} Rd8 {[%clk 00:05:37]} {[%emt
00:03:02]} 29. Nc6 {[%clk 00:00:44]} {[%emt 00:00:59]} Rd7 {[%clk 00:05:55]}
{[%emt 00:00:11]} 30. d6 {[%clk 00:01:04]} {[%emt 00:00:10]} Ne8 {[%clk
00:06:03]} {[%emt 00:00:21]} 31. Nxa7 {[%clk 00:01:17]} {[%emt 00:00:19]} Rxd6
{[%clk 00:05:55]} {[%emt 00:00:38]} 32. Rb2 {[%clk 00:01:10]} {[%emt 00:00:37]}
Rd7 {[%clk 00:03:56]} {[%emt 00:02:29]} 1/2-1/2

[Event "Smuk Skak GM Tournament 2021"]
[Site "Skanderborg, Denmark"]
[Date "2021.08.18"]
[Round "5.1"]
[White "Ochsner, Bjørn Møller"]
[Black "Brunello, Sabino"]
[Result "1-0"]
[TimeControl "90 minutes + 30 minutes at move 40, 30 secs pr move from move 1"]
[WhiteTitle "IM"]
[BlackTitle "GM"]
[WhiteFideId "1416928"]
[BlackFideId "813613"]
[WhiteElo "2506"]
[BlackElo "2517"]

1. e4 {[%clk 01:29:19]} {[%emt 00:01:42]} c5 {[%clk 01:30:50]} {[%emt
00:00:10]} 2. Nf3 {[%clk 01:29:31]} {[%emt 00:00:08]} d6 {[%clk 01:31:15]}
{[%emt 00:00:06]} 3. Bb5+ {[%clk 01:29:47]} {[%emt 00:00:14]} Nd7 {[%clk
01:16:56]} {[%emt 00:14:50]} 4. O-O {[%clk 01:29:07]} {[%emt 00:01:21]} a6
{[%clk 01:14:48]} {[%emt 00:02:43]} 5. Bd3 {[%clk 01:29:14]} {[%emt 00:00:20]}
Ngf6 {[%clk 01:11:30]} {[%emt 00:03:44]} 6. c3 {[%clk 01:26:37]} {[%emt
00:03:03]} e5 {[%clk 01:04:52]} {[%emt 00:07:07]} 7. Re1 {[%clk 01:25:32]}
{[%emt 00:01:42]} Be7 {[%clk 01:03:47]} {[%emt 00:01:42]} 8. Bf1 {[%clk
01:24:06]} {[%emt 00:01:42]} O-O {[%clk 01:00:33]} {[%emt 00:03:44]} 9. d4
{[%clk 01:23:13]} {[%emt 00:01:21]} Re8 {[%clk 00:53:14]} {[%emt 00:07:47]} 10.
d5 {[%clk 01:16:51]} {[%emt 00:07:03]} Nf8 {[%clk 00:50:43]} {[%emt 00:03:03]}
11. a4 {[%clk 01:13:38]} {[%emt 00:03:44]} b6 {[%clk 00:50:39]} {[%emt
00:00:41]} 12. b4 {[%clk 01:09:51]} {[%emt 00:04:04]} Qc7 {[%clk 00:46:37]}
{[%emt 00:04:45]} 13. Na3 {[%clk 01:03:53]} {[%emt 00:06:26]} Bd7 {[%clk
00:39:07]} {[%emt 00:07:47]} 14. bxc5 {[%clk 01:00:18]} {[%emt 00:04:01]} Qxc5
{[%clk 00:38:54]} {[%emt 00:00:43]} 15. Nc4 {[%clk 00:50:29]} {[%emt 00:10:24]}
Qc7 {[%clk 00:24:47]} {[%emt 00:14:34]} 16. Ba3 {[%clk 00:44:23]} {[%emt
00:06:47]} Bg4 {[%clk 00:17:40]} {[%emt 00:07:27]} 17. a5 {[%clk 00:34:06]}
{[%emt 00:10:50]} N8d7 {[%clk 00:10:10]} {[%emt 00:07:58]} 18. h3 {[%clk
00:33:28]} {[%emt 00:01:22]} Bxf3 {[%clk 00:09:09]} {[%emt 00:01:21]} 19. Qxf3
{[%clk 00:33:28]} {[%emt 00:00:41]} b5 {[%clk 00:09:00]} {[%emt 00:00:41]} 20.
Nd2 {[%clk 00:32:24]} {[%emt 00:01:21]} Qxa5 {[%clk 00:03:15]} {[%emt
00:06:26]} 21. Bxd6 {[%clk 00:31:59]} {[%emt 00:00:41]} Qb6 {[%clk 00:02:50]}
{[%emt 00:01:01]} 22. Bxe7 Rxe7 {[%clk 00:03:18]} 23. Reb1 {[%clk 00:28:55]}
{[%emt 00:00:20]} Ree8 {[%clk 00:02:32]} {[%emt 00:01:21]} 24. Nc4 {[%clk
00:24:43]} {[%emt 00:04:45]} Qc7 {[%clk 00:02:52]} 25. Na5 {[%clk 00:24:43]}
{[%emt 00:00:41]} Nc5 {[%clk 00:01:56]} {[%emt 00:01:21]} 26. Rb4 {[%clk
00:20:35]} {[%emt 00:04:27]} Rad8 {[%clk 00:00:56]} {[%emt 00:01:31]} 27. Nc6
{[%clk 00:18:31]} {[%emt 00:02:38]} Rd6 {[%clk 00:01:06]} {[%emt 00:00:21]} 28.
Re1 {[%clk 00:13:41]} {[%emt 00:05:14]} Rxc6 {[%clk 00:00:35]} {[%emt
00:01:02]} 29. dxc6 {[%clk 00:13:33]} {[%emt 00:00:37]} Qxc6 {[%clk 00:00:34]}
{[%emt 00:00:32]} 30. c4 {[%clk 00:12:26]} {[%emt 00:01:48]} Ne6 {[%clk
00:00:33]} {[%emt 00:00:21]} 31. cxb5 {[%clk 00:11:46]} {[%emt 00:01:10]} axb5
{[%clk 00:00:45]} {[%emt 00:00:18]} 32. Bxb5 {[%clk 00:08:50]} {[%emt
00:03:26]} Qc5 {[%clk 00:01:14]} {[%emt 00:00:01]} 33. Rbb1 {[%clk 00:08:58]}
{[%emt 00:00:22]} Nd4 {[%emt 00:00:51]} 34. Qe3 {[%clk 00:08:48]} {[%emt
00:00:29]} Rc8 {[%clk 00:01:16]} {[%emt 00:00:17]} 35. Rec1 {[%clk 00:06:55]}
{[%emt 00:02:23]} Qf8 {[%clk 00:01:45]} {[%emt 00:00:02]} 36. Rxc8 {[%clk
00:04:00]} {[%emt 00:03:26]} Qxc8 {[%clk 00:02:14]} 37. Ba6 {[%clk 00:02:58]}
{[%emt 00:01:33]} Qa8 {[%emt 00:01:59]} 38. Qg5 {[%clk 00:01:29]} {[%emt
00:00:23]} 1-0

[Event "Smuk Skak GM Tournament 2021"]
[Site "Skanderborg, Denmark"]
[Date "2021.08.18"]
[Round "5.2"]
[White "Pedersen, Nicolai Vesterbæk"]
[Black "Svane, Frederik"]
[Result "1/2-1/2"]
[TimeControl "90 minutes + 30 minutes at move 40, 30 secs pr move from move 1"]
[WhiteTitle "IM"]
[BlackTitle "IM"]
[WhiteFideId "1402340"]
[BlackFideId "12923044"]
[WhiteElo "2369"]
[BlackElo "2438"]

1. c4 {[%clk 01:30:55]} {[%emt 01:01:57]} c5 {[%clk 01:30:55]} {[%emt
00:00:20]} 2. g3 {[%clk 01:31:01]} {[%emt 00:00:20]} g6 {[%clk 01:31:16]} 3.
Bg2 {[%clk 01:31:11]} {[%emt 00:00:20]} Bg7 {[%clk 01:31:39]} 4. Nc3 {[%clk
01:31:15]} {[%emt 00:00:41]} Nc6 {[%clk 01:31:56]} 5. d3 {[%clk 01:31:28]}
{[%emt 00:00:15]} d6 {[%clk 01:31:48]} {[%emt 00:00:37]} 6. Qd2 {[%clk
01:31:46]} {[%emt 00:00:13]} h5 {[%clk 01:28:49]} {[%emt 00:03:32]} 7. h4
{[%clk 01:31:00]} {[%emt 00:01:23]} Nh6 {[%clk 01:27:26]} {[%emt 00:02:02]} 8.
b3 {[%clk 01:29:44]} {[%emt 00:01:42]} O-O {[%clk 01:23:39]} {[%emt 00:04:04]}
9. Bb2 {[%clk 01:29:29]} {[%emt 00:01:01]} Rb8 {[%clk 01:22:36]} {[%emt
00:01:21]} 10. e3 {[%clk 01:16:10]} {[%emt 00:13:53]} e5 {[%clk 01:21:35]}
{[%emt 00:01:21]} 11. Nge2 {[%clk 01:12:51]} {[%emt 00:04:04]} Be6 {[%clk
01:19:47]} {[%emt 00:02:22]} 12. O-O {[%clk 01:04:41]} {[%emt 00:08:21]} Qd7
{[%clk 01:11:31]} {[%emt 00:08:48]} 13. Ne4 {[%clk 00:59:22]} {[%emt 00:05:48]}
Bh3 {[%clk 01:08:15]} {[%emt 00:04:04]} 14. d4 {[%clk 00:46:50]} {[%emt
00:12:52]} Bxg2 15. Kxg2 {[%clk 00:47:16]} exd4 {[%clk 00:55:58]} {[%emt
00:06:06]} 16. exd4 {[%clk 00:47:33]} {[%emt 00:00:20]} Rbe8 {[%clk 00:54:24]}
{[%emt 00:01:58]} 17. Ng5 {[%emt 00:09:26]} Nf5 {[%clk 00:47:42]} 18. d5 {[%clk
00:31:53]} {[%emt 00:14:34]} Bxb2 {[%clk 00:47:06]} {[%emt 00:01:01]} 19. Qxb2
{[%clk 00:32:13]} {[%emt 00:00:20]} Ncd4 {[%clk 00:46:08]} {[%emt 00:01:21]} 20.
Nxd4 Nxd4 {[%clk 00:46:32]} 21. Rae1 {[%clk 00:29:54]} {[%emt 00:00:20]} b5
{[%clk 00:40:15]} {[%emt 00:06:46]} 22. Qc3 {[%clk 00:28:00]} {[%emt 00:02:22]}
b4 {[%clk 00:30:18]} {[%emt 00:10:30]} 23. Qd3 {[%clk 00:26:40]} {[%emt
00:01:42]} a5 {[%clk 00:30:40]} {[%emt 00:00:20]} 24. Nf3 {[%clk 00:19:17]}
{[%emt 00:07:58]} Qf5 {[%clk 00:31:01]} 25. Qxf5 {[%clk 00:17:34]} {[%emt
00:02:22]} Nxf5 {[%clk 00:31:11]} {[%emt 00:00:20]} 26. a4 {[%clk 00:15:31]}
{[%emt 00:02:22]} Kg7 {[%clk 00:26:31]} {[%emt 00:05:05]} 27. Kh3 {[%clk
00:14:18]} {[%emt 00:01:42]} Rh8 {[%clk 00:26:55]} {[%emt 00:00:20]} 28. Kg2
{[%clk 00:13:27]} {[%emt 00:01:21]} f6 {[%clk 00:15:41]} {[%emt 00:11:31]} 29.
Kh3 {[%clk 00:13:41]} {[%emt 00:00:20]} Kf7 {[%clk 00:16:02]} {[%emt 00:00:20]}
30. g4 {[%clk 00:09:09]} {[%emt 00:04:45]} hxg4+ {[%emt 00:02:38]} 31. Kxg4
Rxe1 32. Rxe1 Re8 33. Rxe8 Kxe8 {[%clk 00:14:01]} 34. h5 Nh6+ {[%clk 00:14:01]}
35. Kh4 Nf5+ {[%clk 00:14:01]} 36. Kg4 Nh6+ {[%clk 00:14:01]} 37. Kh4 Kf7
{[%clk 00:14:01]} 38. Nd2 Nf5+ {[%clk 00:14:01]} 39. Kg4 Nh6+ {[%clk 00:14:01]}
40. Kh4 Nf5+ {[%clk 00:14:01]} 41. Kg4 Nd4 {[%clk 00:14:01]} 42. h6 Kg8 {[%clk
00:14:01]} 43. Kf4 Kh7 {[%clk 00:14:01]} 44. Ne4 g5+ {[%clk 00:14:01]} 45. Ke3
Nf5+ {[%clk 00:14:01]} 46. Kf3 Kxh6 {[%clk 00:14:01]} 47. Nxf6 Kg6 {[%clk
00:14:01]} 48. Ne8 g4+ {[%clk 00:14:01]} 49. Ke4 Kg5 {[%clk 00:14:01]} 50. Nc7
Nd4 {[%clk 00:14:01]} 51. Ne6+ Nxe6 {[%clk 00:14:01]} 52. dxe6 Kf6 {[%clk
00:14:01]} 53. Kd5 Ke7 {[%clk 00:14:01]} 54. Kc6 Kxe6 {[%clk 00:14:01]} 55. Kb5
d5 {[%clk 00:14:01]} 56. Kxc5 dxc4 {[%clk 00:14:01]} 57. Kxc4 Ke5 {[%clk
00:14:01]} 58. Kd3 Kd5 {[%clk 00:14:01]} 59. Ke3 Ke5 {[%clk 00:14:01]} 60. Kd3
Kf4 {[%clk 00:14:01]} 61. Kd2 Kf3 {[%clk 00:14:01]} 62. Ke1 Kg2 {[%clk
00:14:01]} 63. Ke2 Kh2 {[%clk 00:14:01]} 64. Kd2 Kh1 {[%clk 00:14:01]} 65. Kd1
Kh2 {[%clk 00:14:01]} 1/2-1/2